bitfinex-derivatives/quotes_SOLF0:USTF0_20241025
["timestamp","ask_amount","ask_price","bid_price","bid_amount"]
[1729847028205,5.68,172.26,172.17,2.9055]
[1729847028406,5.68,172.26,172.13,12.56955355]
[1729847028711,12.56955355,172.25,172.14,1.4532475]
[1729847029004,2.9048,172.22,172.13,12.56955355]
[1729847029209,2.9048,172.22,172.14,1.45337136]
[1729847029402,2.9046,172.24,172.2,2.9051]
[1729847029609,12.56955355,172.25,172.17,5.68]
[1729847030000,2.9045,172.24,172.2,2.9051]
[1729847032510,12.56955355,172.22,172.05,2.92633786]
[1729847032702,12.56955355,172.22,172.06,16.28915355]
[1729847032703,12.56955355,172.18,172.06,16.28915355]
[1729847034297,2.9061,172.15,172.06,16.28915355]
[1729847035010,2.9061,172.15,172.09,2.9069]
[1729847035306,2.9061,172.15,172.1,5.68]
[1729847035706,5.68,172.22,172.1,5.68]
[1729847035707,2.9058,172.17,172.1,5.68]
[1729847036208,2.9058,172.17,172.12,2.9065]
[1729847036405,2.9058,172.17,172.1,5.68]
[1729847036802,2.9058,172.17,172.13,2.9063]
[1729847037212,17.45,172.36,172.11,12.56955355]
[1729847037410,12.56955355,172.22,172.14,2.9061]
[1729847038806,2.9052,172.2,172.11,12.56955355]
[1729847039007,2.9052,172.2,172.15,2.9059]
[1729847039207,2.9052,172.2,172.15,8.5859]
[1729847040009,2.9052,172.2,172.15,0.94447318]
[1729847040913,2.9052,172.2,172.15,3.85027318]
[1729847042104,12.56955355,172.22,172.15,0.94447318]
[1729847042312,2.905,172.22,172.17,2.9056]
[1729847042711,12.56955355,172.25,172.15,0.94447318]
[1729847042911,12.56955355,172.25,172.16,1.45338933]
[1729847043120,12.56955355,172.25,172.15,0.94447318]
[1729847043411,12.56955355,172.25,172.16,1.45338258]
[1729847043710,12.56955355,172.25,172.15,0.94447318]
[1729847043904,12.56955355,172.25,172.16,1.45338569]
[1729847044106,2.9048,172.22,172.16,2.9057]
[1729847044306,2.9048,172.22,172.17,1.45337715]
[1729847044512,12.56955355,172.25,172.15,0.94447318]
[1729847044715,12.56955355,172.25,172.16,1.45337668]
[1729847044909,2.9052,172.2,172.17,1.45337668]
[1729847045111,2.9052,172.2,172.15,0.94447318]
[1729847045306,2.9052,172.2,172.16,1.45339197]
[1729847045515,2.9052,172.2,172.15,0.94447318]
[1729847045714,2.9052,172.2,172.16,1.45338487]
[1729847045917,2.9052,172.2,172.15,0.94447318]
[1729847046110,2.9052,172.2,172.16,1.45339682]
[1729847046304,2.9052,172.2,172.15,0.94447318]
[1729847046813,2.9058,172.17,172.11,5.68]
[1729847047012,2.9058,172.17,172.12,7.13359562]
[1729847047214,2.9058,172.17,172.13,1.45359562]
[1729847047510,4.64,172.16,172.14,1.45359562]
[1729847047711,4.64,172.16,172.15,1.45359562]
[1729847047920,4.64,172.16,172.15,4.35959562]
[1729847048216,2.6747,172.16,172.15,4.35959562]
[1729847049845,2.6747,172.16,172.15,2.906]
[1729847050010,2.6747,172.16,172.15,4.35941276]
[1729847050316,2.6747,172.16,172.15,12.39817313]
[1729847052019,0.7093,172.16,172.15,12.39817313]
[1729847053747,0.7093,172.16,172.15,10.94476037]
[1729847053927,0.7093,172.16,172.15,12.39813669]
[1729847057424,0.7093,172.16,172.15,10.94476037]
[1729847057733,0.7093,172.16,172.15,12.39814449]
[1729847061040,0.7093,172.16,172.15,10.94476037]
[1729847061228,0.7093,172.16,172.15,12.39814271]
[1729847061424,1.2569,172.27,172.21,2.9048]
[1729847061633,8.03876037,172.26,172.19,13.39876037]
[1729847061928,8.03876037,172.26,172.2,1.45313534]
[1729847062121,8.03876037,172.26,172.19,13.39876037]
[1729847062434,2.9043,172.25,172.21,2.9048]
[1729847064033,10.94326037,172.24,172.21,2.9048]
[1729847065432,0.7115,172.36,172.22,10.94356037]
[1729847065636,8.03876037,172.28,172.22,8.03876037]
[1729847067328,2.904,172.27,172.23,2.9046]
[1729847067837,8.03876037,172.28,172.22,8.03876037]
[1729847068030,2.9037,172.29,172.25,8.03876037]
[1729847068429,8.03876037,172.3,172.25,8.03876037]
[1729847068731,10.94236037,172.3,172.26,2.904]
[1729847070136,10.94236037,172.3,172.25,8.03876037]
[1729847070339,10.94236037,172.3,172.27,2.904]
[1729847070641,10.94236037,172.3,172.25,8.03876037]
[1729847070940,8.03876037,172.3,172.25,8.03876037]
[1729847071441,8.03876037,172.3,172.27,2.9039]
[1729847072232,10.94226037,172.3,172.26,2.9041]
[1729847072839,2.9033,172.32,172.25,8.03876037]
[1729847073143,8.03876037,172.34,172.28,8.03876037]
[1729847073343,8.03876037,172.34,172.3,2.9033]
[1729847073833,10.94156037,172.34,172.3,2.9033]
[1729847074436,2.903,172.33,172.3,2.9033]
[1729847075543,2.903,172.33,172.29,8.2636]
[1729847076136,2.903,172.33,172.3,2.9034]
[1729847076437,10.94156037,172.34,172.3,2.9034]
[1729847077639,2.9028,172.34,172.3,2.9034]
[1729847078440,8.03876037,172.34,172.31,2.9033]
[1729847079043,10.94156037,172.34,172.3,2.9034]
[1729847079442,6.12887571,172.42,172.29,13.39876037]
[1729847079443,11.46887571,172.42,172.29,13.39876037]
[1729847079745,11.46887571,172.42,172.31,2.9033]
[1729847079746,10.94146037,172.35,172.31,2.9033]
[1729847080440,11.46887571,172.42,172.29,13.39876037]
[1729847080642,10.94156037,172.34,172.3,2.9034]
[1729847081237,2.9028,172.34,172.3,2.9034]
[1729847082534,2.9028,172.34,172.31,8.03876037]
[1729847083750,11.46887571,172.42,172.32,8.03876037]
[1729847083751,2.9027,172.35,172.32,8.03876037]
[1729847085046,2.9027,172.35,172.31,2.9033]
[1729847085554,2.9027,172.35,172.32,8.03876037]
[1729847086146,2.9027,172.35,172.31,2.9033]
[1729847086347,11.46887571,172.42,172.32,8.03876037]
[1729847086547,8.03876037,172.37,172.32,8.03876037]
[1729847087251,2.9026,172.35,172.32,8.03876037]
[1729847087655,8.03876037,172.37,172.32,8.03876037]
[1729847087845,8.03876037,172.38,172.33,8.03876037]
[1729847089356,2.9024,172.37,172.33,10.94156037]
[1729847089550,2.9024,172.37,172.33,2.9028]
[1729847090455,2.9025,172.36,172.32,10.94186037]
[1729847093657,2.9025,172.36,172.32,2.9031]
[1729847100256,8.03876037,172.35,172.28,5.04]
[1729847100453,8.03876037,172.36,172.3,8.03876037]
[1729847101062,2.902,172.39,172.3,10.94216037]
[1729847101261,8.03876037,172.37,172.3,8.03876037]
[1729847102383,2.9026,172.35,172.31,2.9031]
[1729847102669,8.03876037,172.35,172.29,8.03876037]
[1729847102869,8.03876037,172.36,172.31,8.03876037]
[1729847103762,8.5225,172.42,172.07,5.8145]
[1729847103763,5.04,172.35,172.07,5.8145]
[1729847103960,5.04,172.35,172.22,8.03876037]
[1729847103961,8.03876037,172.28,172.22,8.03876037]
[1729847104160,5.04,172.34,172.22,8.03876037]
[1729847104569,2.9035,172.3,172.22,8.03876037]
[1729847104771,2.97676612,172.33,172.22,8.03876037]
[1729847104772,8.03876037,172.29,172.22,8.03876037]
[1729847105265,2.9041,172.27,172.22,8.03876037]
[1729847105478,8.03876037,172.29,172.22,8.03876037]
[1729847105871,2.9042,172.26,172.22,8.03876037]
[1729847109067,2.9042,172.26,172.19,1.2956]
[1729847109068,8.03876037,172.26,172.19,1.2956]
[1729847109268,8.03876037,172.26,172.19,14.37436037]
[1729847109672,2.904,172.27,172.19,14.37436037]
[1729847109902,8.03876037,172.26,172.2,8.03876037]
[1729847110271,2.9045,172.25,172.2,8.03876037]
[1729847110570,2.9045,172.25,172.19,6.3356]
[1729847110571,8.03876037,172.25,172.19,9.33436037]
[1729847110768,8.03876037,172.25,172.13,8.03876037]
[1729847110967,8.03876037,172.25,172.08,1.45319213]
[1729847110968,2.906,172.15,172.1,8.03876037]
[1729847111173,8.03876037,172.16,172.1,8.03876037]
[1729847112168,2.9062,172.14,172.1,8.03876037]
[1729847113270,10.94496037,172.14,172.08,1.2588]
[1729847113474,10.94496037,172.14,172.08,4.1659]
[1729847113770,8.03876037,172.15,172.09,8.03876037]
[1729847114169,62.72,172.27,172.11,8.03876037]
[1729847114366,2.9058,172.16,172.11,8.03876037]
[1729847114777,5.24,172.2,172.12,2.9064]
[1729847114967,8.03876037,172.17,172.11,8.03876037]
[1729847115869,2.9055,172.18,172.11,8.03876037]
[1729847116076,8.03876037,172.18,172.12,9.23186037]
[1729847116981,8.03876037,172.18,172.13,2.9063]
[1729847118273,8.03876037,172.18,172.12,14.47186037]
[1729847118474,8.03876037,172.18,172.14,10.94486037]
[1729847120677,8.03876037,172.18,172.14,8.03876037]
[1729847120876,8.03876037,172.18,172.13,1.242]
[1729847122375,8.03876037,172.18,172.13,4.1483]
[1729847122879,5.24,172.23,172.13,9.28076037]
[1729847123175,8.03876037,172.2,172.13,9.28076037]
[1729847123680,10.94396037,172.2,172.14,2.906]
[1729847123871,8.03876037,172.2,172.13,9.28076037]
[1729847124276,8.03876037,172.2,172.15,2.906]
[1729847124477,8.03876037,172.2,172.13,9.28076037]
[1729847124678,8.03876037,172.2,172.15,8.03876037]
[1729847124984,8.03876037,172.21,172.15,8.03876037]
[1729847125379,8.03876037,172.21,172.16,2.9058]
[1729847125678,8.03876037,172.26,172.2,8.03876037]
[1729847126184,2.9045,172.24,172.19,8.03876037]
[1729847126375,8.03876037,172.23,172.19,8.03876037]
[1729847126682,8.03876037,172.23,172.18,5.24]
[1729847126887,8.03876037,172.23,172.19,2.9053]
[1729847127382,10.94346037,172.23,172.18,5.24]
[1729847127681,8.03876037,172.23,172.18,5.24]
[1729847128073,8.03876037,172.19,171.97,5.8179]
[1729847128280,8.03876037,172.15,172.09,8.03876037]
[1729847128784,8.03876037,172.15,172.09,13.27876037]
[1729847129183,8.03876037,172.15,172.1,2.9067]
[1729847129677,8.03876037,172.15,172.09,13.27876037]
[1729847129884,4.64,172.14,172.09,13.27876037]
[1729847130377,4.64,172.14,172.09,16.18576037]
[1729847132587,4.64,172.14,172.1,2.9068]
[1729847140492,15.58496037,172.14,172.09,10.94576037]
[1729847140993,15.58496037,172.14,172.1,5.24]
[1729847141590,4.64,172.14,172.03,1.0]
[1729847141890,8.03876037,172.04,171.97,8.03876037]
[1729847142791,2.9082,172.02,171.97,8.03876037]
[1729847143097,8.03876037,172.02,171.96,5.28]
[1729847143295,2.9084,172.01,171.96,5.28]
[1729847143494,8.03876037,172.02,171.96,8.03876037]
[1729847143694,5.24,172.08,171.92,8.03876037]
[1729847143695,8.03876037,171.99,171.92,8.03876037]
[1729847143998,8.03876037,171.97,171.91,7.7742]
[1729847144496,8.03876037,171.95,171.91,7.7742]
[1729847144696,10.94816037,171.95,171.91,2.4942]
[1729847145296,8.03876037,171.95,171.91,2.4942]
[1729847145502,8.03876037,171.95,171.9,5.28]
[1729847145686,8.03876037,171.93,171.9,5.28]
[1729847145891,10.94856037,171.93,171.9,5.28]
[1729847146091,8.03876037,171.93,171.9,5.28]
[1729847146293,12.58648895,171.96,171.87,62.76]
[1729847146488,12.58648895,171.96,171.88,5.28]
[1729847147400,2.9095,171.95,171.88,5.28]
[1729847148597,2.9096,171.94,171.88,5.28]
[1729847150801,2.9096,171.94,171.86,5.28]
[1729847150802,12.58648895,171.94,171.86,5.28]
[1729847151396,5.28,171.97,171.86,5.28]
[1729847151592,12.58648895,171.92,171.86,5.28]
[1729847152199,5.28,171.97,171.86,5.28]
[1729847152397,2.9101,171.91,171.86,5.28]
[1729847152996,5.28,171.97,171.86,5.28]
[1729847153202,2.9098,171.93,171.86,5.28]
[1729847154308,2.9098,171.93,171.87,2.9106]
[1729847155005,5.28,171.97,171.86,2.9108]
[1729847155006,2.91,171.92,171.86,2.9108]
[1729847155502,2.9101,171.91,171.85,5.28]
[1729847156396,2.9101,171.91,171.85,8.1909]
[1729847156603,12.58648895,171.94,171.85,8.1909]
[1729847157423,2.9099,171.92,171.86,2.9108]
[1729847160220,12.58648895,171.94,171.87,2.9107]
[1729847160429,12.58648895,171.94,171.83,2.4518]
[1729847160719,12.58648895,171.94,171.84,5.28]
[1729847162326,2.9101,171.91,171.84,5.28]
[1729847163028,2.9101,171.91,171.86,2.9108]
[1729847164403,12.58648895,171.94,171.84,5.28]
[1729847164600,15.49608895,171.94,171.89,2.9104]
[1729847164805,12.58648895,171.96,171.86,12.58648895]
[1729847165125,17.86648895,171.98,171.86,12.58648895]
[1729847165307,12.58648895,171.98,171.86,12.58648895]
[1729847165707,2.9094,171.95,171.86,12.58648895]
[1729847166502,12.58648895,171.98,171.86,12.58648895]
[1729847167109,12.58648895,171.98,171.84,5.28]
[1729847167315,2.9093,171.96,171.87,12.58648895]
[1729847167508,337.0,172.07,171.84,5.28]
[1729847167509,17.86648895,172.0,171.89,12.58648895]
[1729847167709,2.9089,171.98,171.93,2.9097]
[1729847168011,12.58648895,172.0,171.9,9.0962]
[1729847168411,8.05119933,171.98,171.92,8.05119933]
[1729847168714,2.9091,171.97,171.92,2.9098]
[1729847168906,8.05119933,171.96,171.92,2.9098]
[1729847169906,8.05119933,171.96,171.9,17.14739933]
[1729847170220,8.05119933,171.96,171.93,2.9097]
[1729847171624,8.05119933,171.96,171.92,2.9097]
[1729847172406,5.28,172.01,171.9,17.14739933]
[1729847172608,2.88618083,172.03,171.94,2.9095]
[1729847172817,62.86,172.08,171.94,1.0]
[1729847173029,8.05119933,171.99,171.94,1.0]
[1729847173518,8.05119933,172.0,171.94,6.02]
[1729847174514,2.9085,172.01,171.96,2.9091]
[1729847174715,8.05119933,171.97,171.94,6.02]
[1729847174927,5.02,172.04,171.94,6.02]
[1729847174928,4.65,171.96,171.94,6.02]
[1729847175114,12.70119933,171.96,171.94,8.9294]
[1729847175619,4.65,171.96,171.94,8.9294]
[1729847175818,12.70119933,171.96,171.94,8.9294]
[1729847176422,4.65,171.96,171.94,8.9294]
[1729847179019,4.65,171.96,171.94,6.02]
[1729847180540,4.65,171.96,171.94,8.9294]
[1729847183529,4.65,171.96,171.94,6.02]
[1729847183930,0.7156,171.96,171.95,8.05119933]
[1729847184325,0.7156,171.96,171.95,10.96059933]
[1729847185736,0.7156,171.96,171.95,2.9094]
[1729847187930,0.7156,171.96,171.95,10.96059933]
[1729847188239,8.05119933,172.0,171.97,2.9089]
[1729847189125,10.95959933,172.01,171.97,2.9089]
[1729847191238,8.05119933,172.01,171.97,2.9089]
[1729847192645,8.05119933,172.0,171.97,2.9089]
[1729847194362,8.05119933,172.0,171.95,8.05119933]
[1729847194563,8.05119933,172.0,171.97,2.9089]
[1729847195476,5.02,172.06,171.94,6.02]
[1729847195477,8.05119933,171.98,171.94,6.02]
[1729847195668,8.05119933,171.98,171.95,2.9093]
[1729847196459,8.05119933,171.98,171.94,6.02]
[1729847197163,8.05119933,171.98,171.95,2.9092]
[1729847197872,8.05119933,171.98,171.94,6.02]
[1729847199278,8.05119933,171.98,171.96,2.9091]
[1729847199882,10.95969933,172.0,171.96,2.9091]
[1729847200179,5.02,172.06,171.95,8.05119933]
[1729847200377,8.05119933,172.01,171.95,8.05119933]
[1729847200774,8.05119933,172.01,171.98,2.9088]
[1729847200974,8.05119933,172.01,171.95,8.05119933]
[1729847201172,8.05119933,171.98,171.94,1.0]
[1729847201624,10.96019933,171.98,171.94,3.9095]
[1729847201772,2.909,171.98,171.94,3.9095]
[1729847201973,5.02,172.06,171.94,1.0]
[1729847202190,8.05119933,171.99,171.95,2.9093]
[1729847202782,2.9086,172.0,171.95,2.9093]
[1729847202973,10.95979933,172.0,171.96,2.9092]
[1729847203187,10.95979933,172.0,171.94,1.0]
[1729847203584,2.4412,172.07,171.96,8.05119933]
[1729847203796,4.76,172.06,171.96,8.05119933]
[1729847203993,8.05119933,172.04,171.99,8.05119933]
[1729847204193,2.908,172.04,171.99,10.95979933]
[1729847204403,4.76,172.06,171.99,8.05119933]
[1729847204588,1.0,172.13,172.02,8.05119933]
[1729847204792,8.31822394,172.12,172.02,8.05119933]
[1729847204991,2.5621,172.12,172.05,8.05119933]
[1729847205201,8.05119933,172.1,172.05,8.05119933]
[1729847205393,8.05119933,172.09,172.05,2.9077]
[1729847205588,10.95819933,172.1,172.05,8.05119933]
[1729847205896,8.05119933,172.1,172.05,8.05119933]
[1729847206289,1.2967,172.12,172.05,8.05119933]
[1729847206490,8.05119933,172.11,172.05,8.05119933]
[1729847206698,1.2327,172.17,172.06,8.05119933]
[1729847206990,8.05119933,172.13,172.06,8.05119933]
[1729847207191,2.9065,172.12,172.07,7.6673]
[1729847207795,10.95749933,172.13,172.07,7.6673]
[1729847209404,7.1826,172.17,172.07,4.76]
[1729847209597,2.4226,172.17,172.08,8.05119933]
[1729847209796,8.05119933,172.13,172.08,8.05119933]
[1729847210095,10.95759933,172.13,172.08,10.95829933]
[1729847210503,10.95759933,172.13,172.08,8.05119933]
[1729847211083,2.9064,172.13,172.07,4.76]
[1729847211291,8.05119933,172.12,172.07,7.6673]
[1729847212185,8.05119933,172.12,172.07,4.76]
[1729847212393,2.9069,172.1,172.07,4.76]
[1729847212697,8.05119933,172.12,172.07,12.81119933]
[1729847212896,8.05119933,172.13,172.07,12.81119933]
[1729847214219,2.9063,172.13,172.08,10.95829933]
[1729847214401,8.05119933,172.15,172.08,8.05119933]
[1729847214798,8.05119933,172.15,172.09,2.9068]
[1729847214799,2.9062,172.14,172.09,2.9068]
[1729847215385,10.95719933,172.15,172.1,8.05119933]
[1729847217801,2.906,172.15,172.1,8.05119933]
[1729847217990,10.95719933,172.15,172.1,8.05119933]
[1729847218388,10.95719933,172.15,172.1,10.95799933]
[1729847218601,2.906,172.15,172.1,8.05119933]
[1729847218806,10.95719933,172.15,172.1,8.05119933]
[1729847220690,10.95779933,172.12,172.08,5.08]
[1729847220891,8.05830163,172.2,172.08,5.08]
[1729847221183,2.9061,172.15,172.1,8.05119933]
[1729847221386,2.9061,172.15,172.12,8.05119933]
[1729847221790,2.9062,172.14,172.1,8.05119933]
[1729847222094,8.05119933,172.11,171.99,1.0]
[1729847222288,10.95859933,172.07,172.01,4.2119]
[1729847222492,10.95859933,172.07,172.01,9.35489933]
[1729847223080,1.2652,172.13,172.01,9.35489933]
[1729847223081,10.95919933,172.04,172.01,1.3037]
[1729847223275,8.05119933,172.04,171.99,1.0]
[1729847223473,8.05119933,172.02,171.99,1.0]
[1729847223678,10.95939933,172.02,171.99,1.0]
[1729847224382,2.9084,172.01,171.99,1.0]
[1729847225190,12.57460712,172.05,171.99,1.0]
[1729847225773,2.9085,172.0,171.99,1.0]
[1729847227677,17.65460712,172.09,172.0,12.57460712]
[1729847228076,2.9075,172.07,172.01,2.9082]
[1729847228373,1.2652,172.13,172.02,17.65460712]
[1729847228578,2.907,172.09,172.02,17.65460712]
[1729847228971,13.83980712,172.13,172.02,17.65460712]
[1729847229176,18.91980712,172.13,172.02,17.65460712]
[1729847229576,1.2652,172.13,172.05,2.9075]
[1729847229882,2.9067,172.11,172.04,12.57460712]
[1729847230083,2.9067,172.11,172.05,2.9076]
[1729847230781,1.2652,172.13,172.04,12.57460712]
[1729847231083,13.83980712,172.13,172.04,12.57460712]
[1729847231692,1.2652,172.13,172.04,12.57460712]
[1729847232276,1.2994,172.14,172.04,12.57460712]
[1729847232482,5.08,172.16,172.06,12.57460712]
[1729847232681,5.08,172.16,172.06,17.65460712]
[1729847232983,2.9063,172.13,172.06,20.56200712]
[1729847233179,5.08,172.16,172.06,20.56200712]
[1729847233586,5.08,172.16,172.06,17.65460712]
[1729847234184,5.08,172.16,171.99,3.4585]
[1729847234185,12.57460712,172.07,171.99,1.0]
[1729847234690,12.57460712,172.09,171.99,18.65460712]
[1729847234888,12.57460712,172.09,171.99,21.56330712]
[1729847235484,12.57460712,172.09,171.99,18.65460712]
[1729847235708,12.57460712,172.07,171.99,6.08]
[1729847236585,12.57460712,172.07,171.99,1.0]
[1729847236795,2.9083,172.02,171.99,1.0]
[1729847236977,12.57460712,172.05,171.99,1.0]
[1729847237284,2.9083,172.02,171.99,1.0]
[1729847237478,12.57460712,172.05,171.99,1.0]
[1729847238585,2.9084,172.01,171.99,1.0]
[1729847240185,2.9085,172.0,171.99,1.0]
[1729847241290,2.9084,172.01,171.99,1.0]
[1729847241897,2.5337,172.09,171.99,1.0]
[1729847241898,15.10830712,172.09,171.99,1.0]
[1729847242080,15.10830712,172.09,172.0,5.08]
[1729847242691,12.57460712,172.09,172.0,5.08]
[1729847242883,12.57460712,172.12,172.01,12.57460712]
[1729847243192,2.9071,172.09,172.01,15.48290712]
[1729847243395,2.3733,172.17,172.03,12.57460712]
[1729847243396,12.57460712,172.14,172.03,12.57460712]
[1729847243580,17.65460712,172.14,172.04,5.08]
[1729847243789,2.9067,172.11,172.04,7.9878]
[1729847244194,17.65460712,172.14,172.04,7.9878]
[1729847244385,12.57460712,172.14,172.04,7.9878]
[1729847244579,2.3733,172.17,172.05,12.57460712]
[1729847244784,0.99582959,172.16,172.08,12.57460712]
[1729847244984,2.3733,172.17,172.08,12.57460712]
[1729847245790,2.9064,172.13,172.08,12.57460712]
[1729847246695,2.9064,172.13,172.07,2.9072]
[1729847249690,12.57460712,172.14,172.0,1.0]
[1729847249897,2.9071,172.09,172.01,2.9083]
[1729847250193,12.57460712,172.12,172.02,5.32]
[1729847250391,2.9072,172.09,172.02,8.2281]
[1729847250596,12.57460712,172.12,172.02,8.2281]
[1729847251000,2.9071,172.09,172.02,8.2281]
[1729847251696,2.9072,172.08,172.02,8.2281]
[1729847256990,17.89460712,172.14,172.04,2.9078]
[1729847257194,17.89460712,172.14,172.05,1.268]
[1729847257391,17.89460712,172.14,172.05,4.1757]
[1729847257392,2.9068,172.1,172.05,4.1757]
[1729847257622,2.9068,172.1,172.05,1.268]
[1729847260403,12.57460712,172.14,172.05,1.268]
[1729847260995,2.907,172.1,172.05,1.268]
[1729847262000,2.9084,172.01,172.0,1.0]
[1729847262307,17.89460712,172.08,172.0,1.0]
[1729847262603,2.9079,172.04,172.0,1.0]
[1729847262901,12.57460712,172.08,172.0,1.0]
[1729847263201,0.99646637,172.07,172.0,1.0]
[1729847263591,17.89460712,172.06,172.0,1.0]
[1729847263806,2.9084,172.01,172.0,1.0]
[1729847265003,2.9084,172.01,171.92,2.4815]
[1729847265004,2.9087,171.99,171.92,2.4815]
[1729847265199,12.57460712,172.0,171.92,2.4815]
[1729847265391,0.99669501,171.99,171.92,2.4815]
[1729847265591,2.9089,171.98,171.92,1.2332]
[1729847265794,5.32,172.01,171.92,1.2332]
[1729847265997,12.57460712,171.99,171.92,1.2332]
[1729847266198,0.99665009,171.98,171.92,1.2332]
[1729847266698,12.57460712,171.99,171.92,1.2332]
[1729847267001,2.9098,171.93,171.9,1.2369]
[1729847267506,2.9099,171.92,171.9,1.2369]
[1729847267698,4.65,171.91,171.9,1.2369]
[1729847271099,12.57460712,172.01,171.9,13.81150712]
[1729847272408,2.9091,171.97,171.9,13.81150712]
[1729847272615,12.57460712,172.01,171.9,13.81150712]
[1729847273002,2.909,171.98,171.9,13.81150712]
[1729847274208,2.909,171.97,171.9,13.81150712]
[1729847275413,5.32,172.03,171.9,13.81150712]
[1729847275606,12.57460712,172.02,171.9,13.81150712]
[1729847276001,5.32,172.03,171.9,13.81150712]
[1729847276002,2.9092,171.96,171.9,13.81150712]
[1729847276210,2.9092,171.96,171.91,1.2931]
[1729847277212,2.9094,171.95,171.91,1.2931]
[1729847277607,12.57460712,171.98,171.9,1.2369]
[1729847279216,2.9098,171.93,171.9,1.2369]
[1729847280216,2.9099,171.92,171.9,1.2369]
[1729847281411,2.9098,171.93,171.9,1.2369]
[1729847281819,12.57460712,171.99,171.9,1.2369]
[1729847282021,2.9099,171.92,171.9,1.2369]
[1729847284528,4.65,171.91,171.9,1.2369]
[1729847285330,4.65,171.91,171.9,13.81150712]
[1729847285522,7.56,171.91,171.9,13.81150712]
[1729847286522,4.65,171.91,171.81,5.22]
[1729847286717,4.65,171.91,171.84,1.2149]
[1729847286929,4.65,171.91,171.85,12.57460712]
[1729847287121,2.9107,171.88,171.85,12.57460712]
[1729847291238,2.9107,171.88,171.86,5.22]
[1729847295246,2.9107,171.88,171.84,1.2149]
[1729847295732,2.9107,171.88,171.85,5.22]
[1729847295929,2.9109,171.86,171.84,1.2149]
[1729847296123,4.65,171.91,171.84,1.2149]
[1729847296426,8.05099474,171.89,171.84,1.2149]
[1729847296629,2.9112,171.84,171.83,13.27099474]
[1729847297325,4.65,171.91,171.83,13.27099474]
[1729847297633,4.65,171.91,171.88,8.05099474]
[1729847298236,4.65,171.91,171.9,8.05099474]
[1729847298429,1.2265,172.01,171.9,8.05099474]
[1729847298622,2.9091,171.97,171.95,8.05099474]
[1729847298827,9.27749474,172.01,171.94,8.05099474]
[1729847298828,8.05099474,171.99,171.94,8.05099474]
[1729847299426,8.05099474,171.98,171.91,5.22]
[1729847299728,8.05099474,171.96,171.91,8.05099474]
[1729847300120,2.9098,171.93,171.91,8.05099474]
[1729847300325,12.58454098,171.98,171.8,2.3823]
[1729847300522,12.58454098,171.95,171.81,5.22]
[1729847300727,2.9105,171.89,171.83,2.9113]
[1729847300924,2.9105,171.89,171.84,12.58454098]
[1729847301326,1.2967,171.94,171.84,12.58454098]
[1729847301526,12.58454098,171.93,171.81,2.9116]
[1729847301722,12.58454098,171.93,171.82,5.22]
[1729847302433,3.8365,171.94,171.8,2.3823]
[1729847302434,12.58454098,171.91,171.8,2.3823]
[1729847302636,12.58454098,171.91,171.81,5.22]
[1729847303128,2.9106,171.88,171.81,5.22]
[1729847303328,5.22,171.92,171.81,5.22]
[1729847303537,12.58454098,171.91,171.81,5.22]
[1729847303733,2.911,171.86,171.81,5.22]
[1729847303934,12.58454098,171.85,171.62,17.47]
[1729847304139,1.2494,171.84,171.63,65.24299388]
[1729847304441,12.58454098,171.8,171.69,12.58454098]
[1729847304640,2.5484,171.84,171.52,62.86]
[1729847304641,12.58454098,171.74,171.52,62.86]
[1729847304830,12.58454098,171.74,171.63,12.58454098]
[1729847305134,2.9134,171.71,171.63,12.58454098]
[1729847305336,12.58454098,171.74,171.63,12.58454098]
[1729847305537,14.99104098,171.74,171.63,12.58454098]
[1729847306224,2.9137,171.7,171.62,4.1338]
[1729847306533,2.9137,171.7,171.62,2.915]
[1729847306735,2.4065,171.74,171.62,2.915]
[1729847306931,2.9131,171.73,171.62,2.915]
[1729847307237,2.4065,171.74,171.65,2.9144]
[1729847307536,2.4065,171.74,171.66,5.24]
[1729847308733,2.4065,171.74,171.67,2.9141]